fUST/lending_fUST_20250428
["ID","MTS","AMOUNT","RATE_DAILY","PERIOD"]
[359233009,1745854257738,-400.0,0.00022465,2]
[359233010,1745854257748,-420.66,0.00022465,2]
[359233011,1745854257757,-400.0,0.00022465,2]
[359233012,1745854257766,-566.57,0.00022465,2]
[359233013,1745854257776,-304.27459353,0.00022465,2]
[359233014,1745854257784,-400.0,0.00022465,2]
[359233015,1745854257793,-400.0,0.00022465,2]
[359233016,1745854257802,-558.44,0.00022465,2]
[359233017,1745854257811,-400.0,0.00022465,2]
[359233018,1745854257820,-611.54163883,0.00022465,2]
[359233019,1745854257829,-400.0,0.00022465,2]
[359233020,1745854257838,-400.0,0.00022465,2]
[359233021,1745854257846,-400.0,0.00022465,2]
[359233022,1745854257855,-400.0,0.00022465,2]
[359233023,1745854257863,-307.37604626,0.00022465,2]
[359233024,1745854257872,-400.0,0.00022465,2]
[359233025,1745854257881,-400.0,0.00022465,2]
[359233026,1745854257889,-309.13865119,0.00022465,2]
[359233027,1745854257898,-400.0,0.00022465,2]
[359233028,1745854257907,-400.0,0.00022465,2]
[359233029,1745854257915,-400.0,0.00022465,2]
[359233030,1745854257924,-412.01,0.00022465,2]
[359233031,1745854257933,-403.54540228,0.00022465,2]
[359233032,1745854257941,-545.22,0.00022465,2]
[359233033,1745854257950,-400.0,0.00022465,2]
[359233034,1745854257959,-202.62459525,0.00022465,2]
[359233035,1745854257971,-400.0,0.00022465,2]
[359233036,1745854257978,-614.02,0.00022465,2]
[359233037,1745854257986,-437.31,0.00022465,2]
[359233038,1745854257995,-400.0,0.00022465,2]
[359233039,1745854258003,-400.0,0.00022465,2]
[359233040,1745854258012,-500.0,0.00022465,2]
[359233041,1745854258021,-400.0,0.00022465,2]
[359233042,1745854258030,-400.0,0.00022465,2]
[359233043,1745854258038,-801.28,0.00022465,2]
[359233044,1745854258047,-400.0,0.00022465,2]
[359233045,1745854258056,-518.71,0.00022465,2]
[359233046,1745854258065,-513.9,0.00022465,2]
[359233047,1745854258074,-399.74846244,0.00022465,2]
[359233048,1745854258083,-400.0,0.00022465,2]
[359233049,1745854258091,-1806.3,0.00022465,2]
[359233050,1745854258100,-400.0,0.00022465,2]
[359233051,1745854258109,-400.0,0.00022465,2]
[359233052,1745854258118,-421.17,0.00022465,2]
[359233053,1745854258127,-1091.49,0.00022465,2]
[359233054,1745854258136,-400.0,0.00022465,2]
[359233055,1745854258145,-400.0,0.00022465,2]
[359233056,1745854258153,-400.0,0.00022465,2]
[359233057,1745854258162,-400.0,0.00022465,2]
[359233058,1745854258172,-400.0,0.00022465,2]
[359233059,1745854258180,-400.0,0.00022465,2]
[359233060,1745854258190,-477.5,0.00022465,2]
[359233061,1745854258200,-400.0,0.00022465,2]
[359233062,1745854258209,-465.93,0.00022465,2]
[359233063,1745854258222,-221.3031868,0.00022465,2]
[359233064,1745854258233,-400.0,0.00022465,2]
[359233065,1745854258243,-400.0,0.00022465,2]
[359233066,1745854258252,-318.28248934,0.00022465,2]
[359233067,1745854258261,-400.0,0.00022465,2]
[359233068,1745854258270,-400.0,0.00022465,2]
[359233069,1745854258279,-400.23,0.00022465,2]
[359233070,1745854258288,-400.0,0.00022465,2]
[359233071,1745854258297,-400.0,0.00022465,2]
[359233072,1745854258307,-400.0,0.00022465,2]
[359233073,1745854258320,-1090.29,0.00022465,2]
[359233074,1745854258329,-400.0,0.00022465,2]
[359233075,1745854258339,-400.0,0.00022465,2]
[359233076,1745854258348,-899.92,0.00022465,2]
[359233077,1745854258358,-400.0,0.00022465,2]
[359233078,1745854258367,-400.0,0.00022465,2]
[359233079,1745854258376,-723.5,0.00022465,2]
[359233080,1745854258387,-400.0,0.00022465,2]
[359233081,1745854258397,-400.0,0.00022465,2]
[359233082,1745854258406,-400.0,0.00022465,2]
[359233083,1745854258416,-852.31,0.00022465,2]
[359233084,1745854258425,-400.0,0.00022465,2]
[359233085,1745854258435,-400.0,0.00022465,2]
[359233086,1745854258444,-400.0,0.00022465,2]
[359233087,1745854258453,-400.0,0.00022465,2]
[359233088,1745854258462,-400.0,0.00022465,2]
[359233089,1745854258474,-2056.18,0.00022465,2]
[359233090,1745854258483,-400.0,0.00022465,2]
[359233091,1745854258492,-421.62,0.00022465,2]
[359233092,1745854258501,-400.0,0.00022465,2]
[359233093,1745854258510,-676.77,0.00022465,2]
[359233094,1745854258519,-400.0,0.00022465,2]
[359233095,1745854258529,-400.0,0.00022465,2]
[359233096,1745854258538,-400.0,0.00022465,2]
[359233097,1745854258548,-400.0,0.00022465,2]
[359233098,1745854258557,-400.0,0.00022465,2]
[359233099,1745854258566,-616.91,0.00022465,2]
[359233100,1745854258575,-400.0,0.00022465,2]
[359233101,1745854258584,-762.06,0.00022465,2]
[359233102,1745854258593,-400.0,0.00022465,2]
[359233103,1745854258602,-400.0,0.00022465,2]
[359233104,1745854258611,-448.82308414,0.00022465,2]
[359233105,1745854258621,-682.82,0.00022465,2]
[359233106,1745854258630,-494.68399712,0.00022465,2]
[359233107,1745854258640,-754.52,0.00022465,2]
[359233108,1745854258649,-400.0,0.00022465,2]
[359233109,1745854258659,-301.02711361,0.00022465,2]
[359233110,1745854258668,-564.2,0.00022465,2]
[359233111,1745854258677,-400.0,0.00022465,2]
[359233112,1745854258687,-400.0,0.00022465,2]
[359233113,1745854258696,-400.0,0.00022465,2]
[359233114,1745854258705,-400.0,0.00022465,2]
[359233116,1745854258715,-400.0,0.00022465,2]
[359233117,1745854258727,-407.34,0.00022465,2]
[359233118,1745854258737,-400.0,0.00022465,2]
[359233119,1745854258746,-167.40754338,0.00022465,2]
[359233120,1745854258756,-400.0,0.00022465,2]
[359233121,1745854258766,-400.0,0.00022465,2]
[359233122,1745854258775,-388.0538308,0.00022465,2]
[359233123,1745854258785,-945.48,0.00022465,2]
[359233124,1745854258794,-400.0,0.00022465,2]
[359233125,1745854258803,-400.0,0.00022465,2]
[359233126,1745854258813,-400.0,0.00022465,2]
[359233127,1745854258822,-400.0,0.00022465,2]
[359233128,1745854258832,-400.0,0.00022465,2]
[359233129,1745854258841,-400.0,0.00022465,2]
[359233130,1745854258850,-400.0,0.00022465,2]
[359233131,1745854258860,-400.0,0.00022465,2]
[359233132,1745854258869,-400.0,0.00022465,2]
[359233133,1745854258879,-400.0,0.00022465,2]
[359233134,1745854258888,-203.08492011,0.00022465,2]
[359233135,1745854258897,-400.0,0.00022465,2]
[359233136,1745854258907,-400.0,0.00022465,2]
[359233137,1745854258916,-632.59,0.00022465,2]
[359233138,1745854258926,-400.0,0.00022465,2]
[359233139,1745854258935,-400.0,0.00022465,2]
[359233140,1745854258944,-400.0,0.00022465,2]
[359233141,1745854258953,-488.85864937,0.00022465,2]
[359233142,1745854258963,-400.0,0.00022465,2]
[359233143,1745854258974,-400.0,0.00022465,2]
[359233144,1745854258983,-400.0,0.00022465,2]
[359233145,1745854258992,-400.0,0.00022465,2]
[359233146,1745854259001,-7309.86,0.00022465,2]
[359233147,1745854259011,-400.0,0.00022465,2]
[359233148,1745854259020,-400.0,0.00022465,2]
[359233149,1745854259029,-717.62,0.00022465,2]
[359233150,1745854259039,-400.0,0.00022465,2]
[359233151,1745854259048,-400.0,0.00022465,2]
[359233152,1745854259057,-400.0,0.00022465,2]
[359233153,1745854259067,-400.0,0.00022465,2]
[359233154,1745854259076,-2494.29,0.00022465,2]
[359233155,1745854259085,-5087.19,0.00022465,2]
[359233156,1745854259094,-232.88738717,0.00022465,2]
[359233157,1745854259103,-200.0,0.00022465,2]
[359233158,1745854259112,-400.0,0.00022465,2]
[359233159,1745854259122,-400.0,0.00022465,2]
[359233160,1745854259131,-400.0,0.00022465,2]
[359233161,1745854259141,-208.15267079,0.00022465,2]
[359233162,1745854259150,-400.0,0.00022465,2]
[359233163,1745854259159,-3113.85,0.00022465,2]
[359233164,1745854259169,-790.41,0.00022465,2]
[359233165,1745854259178,-400.0,0.00022465,2]
[359233166,1745854259188,-400.0,0.00022465,2]
[359233167,1745854259197,-400.0,0.00022465,2]
[359233168,1745854259207,-400.0,0.00022465,2]
[359233169,1745854259216,-400.0,0.00022465,2]
[359233170,1745854259227,-1703.91,0.00022465,2]
[359233171,1745854259237,-3274.68,0.00022465,2]
[359233172,1745854259246,-400.0,0.00022465,2]
[359233173,1745854259255,-400.0,0.00022465,2]
[359233174,1745854259264,-429.67,0.00022465,2]
[359233175,1745854259273,-400.0,0.00022465,2]
[359233176,1745854259282,-400.0,0.00022465,2]
[359233177,1745854259291,-400.0,0.00022465,2]
[359233178,1745854259301,-400.0,0.00022465,2]
[359233179,1745854259314,-400.0,0.00022465,2]
[359233180,1745854259323,-400.0,0.00022465,2]
[359233181,1745854259332,-400.0,0.00022465,2]
[359233182,1745854259342,-400.0,0.00022465,2]
[359233183,1745854259351,-2521.1,0.00022465,2]
[359233184,1745854259362,-217.13441961,0.00022465,2]
[359233185,1745854259371,-400.0,0.00022465,2]
[359233186,1745854259381,-426.81,0.00022465,2]
[359233187,1745854259392,-400.0,0.00022465,2]
[359233188,1745854259401,-400.0,0.00022465,2]
[359233189,1745854259411,-400.0,0.00022465,2]
[359233190,1745854259420,-202.49020601,0.00022465,2]
[359233191,1745854259431,-399.96392738,0.00022465,2]
[359233192,1745854259441,-400.0,0.00022465,2]
[359233193,1745854259451,-400.0,0.00022465,2]
[359233194,1745854259461,-400.0,0.00022465,2]
[359233195,1745854259472,-1387.76,0.00022465,2]
[359233196,1745854259481,-400.0,0.00022465,2]
[359233197,1745854259491,-400.0,0.00022465,2]
[359233198,1745854259501,-2824.54,0.00022465,2]
[359233199,1745854259511,-400.0,0.00022465,2]
[359233200,1745854259522,-400.0,0.00022465,2]
[359233201,1745854259531,-400.0,0.00022465,2]
[359233202,1745854259542,-396.17391046,0.00022465,2]
[359233203,1745854259551,-400.0,0.00022465,2]
[359233204,1745854259561,-400.0,0.00022465,2]
[359233205,1745854259570,-400.0,0.00022465,2]
[359233206,1745854259579,-400.0,0.00022465,2]
[359233207,1745854259589,-2527.73,0.00022465,2]
[359233208,1745854259598,-683.24,0.00022465,2]
[359233209,1745854259607,-454.16,0.00022465,2]
[359233210,1745854259616,-400.0,0.00022465,2]
[359233211,1745854259626,-400.0,0.00022465,2]
[359233212,1745854259635,-400.0,0.00022465,2]
[359233213,1745854259644,-400.0,0.00022465,2]
[359233215,1745854259652,-569.43,0.00022465,2]
[359233216,1745854259660,-400.0,0.00022465,2]
[359233217,1745854259669,-400.0,0.00022465,2]
[359233218,1745854259807,-400.0,0.00022465,2]
[359233219,1745854259817,-400.0,0.00022465,2]
[359233220,1745854259827,-400.0,0.00022465,2]
[359233221,1745854259836,-400.0,0.00022465,2]
[359233222,1745854259846,-400.0,0.00022465,2]
[359233223,1745854259855,-400.0,0.00022465,2]
[359233224,1745854259864,-500.0,0.00022465,2]
[359233225,1745854259874,-400.0,0.00022465,2]
[359233226,1745854259883,-400.0,0.00022465,2]
[359233227,1745854259893,-400.0,0.00022465,2]
[359233228,1745854259903,-400.0,0.00022465,2]
[359233229,1745854259913,-1851.22,0.00022465,2]
[359233230,1745854259923,-2647.48,0.00022465,2]
[359233231,1745854259932,-1350.02,0.00022465,2]
[359233232,1745854259941,-496.31,0.00022465,2]
[359233233,1745854259951,-204.24399687,0.00022465,2]
[359233234,1745854259960,-400.0,0.00022465,2]
[359233235,1745854259970,-400.0,0.00022465,2]
[359233236,1745854259979,-400.0,0.00022465,2]
[359233237,1745854259989,-5060.6,0.00022465,2]
[359233238,1745854259998,-400.0,0.00022465,2]
[359233239,1745854260007,-400.0,0.00022465,2]
[359233240,1745854260016,-624.97,0.00022465,2]
[359233241,1745854260026,-400.0,0.00022465,2]
[359233242,1745854260035,-415.16173931,0.00022465,2]
[359233243,1745854260045,-400.0,0.00022465,2]
[359233244,1745854260055,-400.0,0.00022465,2]
[359233245,1745854260065,-400.0,0.00022465,2]
[359233246,1745854260076,-1632.73,0.00022465,2]
[359233247,1745854260087,-593.79,0.00022465,2]
[359233248,1745854260097,-400.0,0.00022465,2]
[359233249,1745854260107,-400.0,0.00022465,2]
[359233250,1745854260117,-400.0,0.00022465,2]
[359233251,1745854260127,-210.31507806,0.00022465,2]
[359233252,1745854260137,-400.0,0.00022465,2]
[359233253,1745854260146,-400.0,0.00022465,2]
[359233254,1745854260155,-1228.61,0.00022465,2]
[359233255,1745854260165,-400.0,0.00022465,2]
[359233256,1745854260175,-400.0,0.00022465,2]
[359233257,1745854260185,-400.0,0.00022465,2]
[359233258,1745854260194,-400.0,0.00022465,2]
[359233259,1745854260204,-400.0,0.00022465,2]
[359233260,1745854260213,-400.0,0.00022465,2]
[359233261,1745854260224,-400.0,0.00022465,2]
[359233262,1745854260234,-400.0,0.00022465,2]
[359233263,1745854260244,-400.0,0.00022465,2]
[359233264,1745854260254,-323.35264609,0.00022465,2]
[359233265,1745854260263,-400.0,0.00022465,2]
[359233266,1745854260274,-400.0,0.00022465,2]
[359233267,1745854260284,-3602.46,0.00022465,2]
[359233268,1745854260294,-814.21,0.00022465,2]
[359233269,1745854260305,-400.0,0.00022465,2]
[359233270,1745854260319,-421.53,0.00022465,2]
[359233271,1745854260329,-400.0,0.00022465,2]
[359233272,1745854260338,-400.0,0.00022465,2]
[359233273,1745854260348,-400.0,0.00022465,2]
[359233274,1745854260358,-3891.84,0.00022465,2]
[359233275,1745854260368,-530.13407017,0.00022465,2]
[359233276,1745854260378,-400.0,0.00022465,2]
[359233277,1745854260389,-400.0,0.00022465,2]
[359233278,1745854260399,-400.0,0.00022465,2]
[359233279,1745854260409,-400.0,0.00022465,2]
[359233280,1745854260418,-400.0,0.00022465,2]
[359233281,1745854260427,-608.06,0.00022465,2]
[359233282,1745854260437,-1983.73,0.00022465,2]
[359233283,1745854260447,-400.0,0.00022465,2]
[359233284,1745854260456,-2678.18,0.00022465,2]
[359233285,1745854260465,-219.3986597,0.00022465,2]
[359233286,1745854260477,-535.19,0.00022465,2]
[359233287,1745854260487,-2696.99,0.00022465,2]
[359233288,1745854260496,-400.0,0.00022465,2]
[359233289,1745854260506,-202.78021729,0.00022465,2]
[359233290,1745854260515,-575.67,0.00022465,2]
[359233291,1745854260525,-1353.5,0.00022465,2]
[359233292,1745854260534,-605.61,0.00022465,2]
[359233293,1745854260544,-400.0,0.00022465,2]
[359233294,1745854260554,-400.0,0.00022465,2]
[359233295,1745854260563,-400.0,0.00022465,2]
[359233296,1745854260572,-400.0,0.00022465,2]
[359233297,1745854260581,-2630.71,0.00022465,2]
[359233298,1745854260591,-2670.14,0.00022465,2]
[359233299,1745854260600,-884.46,0.00022465,2]
[359233300,1745854260610,-400.0,0.00022465,2]
[359233301,1745854260619,-400.0,0.00022465,2]
[359233302,1745854260629,-223.85730459,0.00022465,2]
[359233303,1745854260638,-400.0,0.00022465,2]
[359233304,1745854260648,-2266.38,0.00022465,2]
[359233305,1745854260657,-400.0,0.00022465,2]
[359233306,1745854260667,-400.0,0.00022465,2]
[359233307,1745854260677,-400.0,0.00022465,2]
[359233308,1745854260685,-400.0,0.00022465,2]
[359233309,1745854260695,-3076.98,0.00022465,2]
[359233310,1745854260705,-462.5,0.00022465,2]
[359233311,1745854260715,-400.0,0.00022465,2]
[359233312,1745854260727,-2367.77,0.00022465,2]
[359233313,1745854260736,-814.58,0.00022465,2]
[359233314,1745854260745,-400.0,0.00022465,2]
[359233315,1745854260754,-400.0,0.00022465,2]
[359233316,1745854260764,-400.0,0.00022465,2]
[359233317,1745854260773,-400.0,0.00022465,2]
[359233318,1745854260782,-490.2,0.00022465,2]
[359233319,1745854260792,-400.0,0.00022465,2]
[359233320,1745854260801,-400.0,0.00022465,2]
[359233321,1745854260811,-400.0,0.00022465,2]
[359233322,1745854260820,-4290.17,0.00022465,2]
[359233323,1745854260829,-400.0,0.00022465,2]
[359233324,1745854260838,-400.0,0.00022465,2]
[359233325,1745854260847,-578.43,0.00022465,2]
[359233326,1745854260856,-400.0,0.00022465,2]
[359233327,1745854260865,-2624.56,0.00022465,2]
[359233328,1745854260875,-223.47979665,0.00022465,2]
[359233329,1745854260884,-400.0,0.00022465,2]
[359233330,1745854260894,-201.81419777,0.00022465,2]
[359233331,1745854260904,-400.0,0.00022465,2]
[359233332,1745854260913,-203.46995054,0.00022465,2]
[359233333,1745854260923,-400.0,0.00022465,2]
[359233334,1745854260932,-400.0,0.00022465,2]
[359233335,1745854260941,-400.0,0.00022465,2]
[359233336,1745854260951,-555.38,0.00022465,2]
[359233337,1745854260961,-14339.89359155,0.00022512,2]
[359233338,1745854260972,-361.7792701,0.00022603,2]
[359233339,1745854260980,-1705.62088949,0.00022659,4]
[359233340,1745854260990,-1005.88,0.00022738,2]
[359233341,1745854260999,-1005.88,0.00022738,2]
[359233342,1745854261008,-575.67,0.00022738,2]
[359233343,1745854261017,-575.67,0.00022738,2]
[359233344,1745854261028,-5746.96,0.00022738,2]
[359233345,1745854261037,-5746.96,0.00022738,2]
[359233346,1745854261047,-338.98480853,0.00022739,2]
[359233347,1745854261056,-400.0,0.00022739,2]
[359233348,1745854261064,-400.0,0.00022739,2]
[359233349,1745854261074,-400.0,0.00022739,2]
[359233350,1745854261083,-400.0,0.00022739,2]
[359233351,1745854261092,-400.0,0.00022739,2]
[359233352,1745854261101,-400.0,0.00022739,2]
[359233353,1745854261111,-400.0,0.00022739,2]
[359233354,1745854261120,-400.0,0.00022739,2]
[359233355,1745854261130,-400.0,0.00022739,2]
[359233356,1745854261139,-446.98,0.00022739,2]
[359233357,1745854261149,-400.0,0.00022739,2]
[359233358,1745854261158,-420.9,0.00022739,2]
[359233359,1745854261167,-400.0,0.00022739,2]
[359233360,1745854261176,-455.03,0.00022739,2]
[359233361,1745854261185,-400.0,0.00022739,2]
[359233362,1745854261195,-400.0,0.00022739,2]
[359233363,1745854261204,-400.0,0.00022739,2]
[359233364,1745854261214,-642.33,0.00022739,2]
[359233365,1745854261225,-427.15,0.00022739,2]
[359233366,1745854261235,-400.0,0.00022739,2]
[359233367,1745854261244,-400.0,0.00022739,2]
[359233368,1745854261253,-400.0,0.00022739,2]
[359233369,1745854261263,-400.0,0.00022739,2]
[359233370,1745854261272,-969.45,0.00022739,2]
[359233371,1745854261282,-400.0,0.00022739,2]
[359233372,1745854261291,-400.0,0.00022739,2]
[359233373,1745854261300,-400.0,0.00022739,2]
[359233374,1745854261310,-400.0,0.00022739,2]
[359233375,1745854261321,-528.32,0.00022739,2]
[359233376,1745854261330,-302.77536735,0.00022739,2]
[359233377,1745854261338,-1000.0,0.00022739,2]
[359233378,1745854261347,-400.0,0.00022739,2]
[359233379,1745854261357,-532.85911631,0.00022739,2]
[359233380,1745854261366,-1000.0,0.00022739,2]
[359233381,1745854261375,-209.431972,0.00022739,2]
[359233382,1745854261386,-400.0,0.00022739,2]
[359233383,1745854261395,-400.0,0.00022739,2]
[359233384,1745854261405,-400.0,0.00022739,2]
[359233385,1745854261414,-400.0,0.00022739,2]
[359233386,1745854261423,-400.0,0.00022739,2]
[359233387,1745854261432,-400.0,0.00022739,2]
[359233388,1745854261441,-400.0,0.00022739,2]
[359233389,1745854261451,-400.0,0.00022739,2]
[359233390,1745854261460,-408.21,0.00022739,2]
[359233391,1745854261470,-416.66,0.00022739,2]
[359233392,1745854261480,-400.0,0.00022739,2]
[359233393,1745854261489,-283.18856819,0.00022739,2]
[359233394,1745854261499,-400.0,0.00022739,2]
[359233395,1745854261508,-400.0,0.00022739,2]
[359233396,1745854261517,-400.0,0.00022739,2]
[359233397,1745854261526,-400.0,0.00022739,2]
[359233398,1745854261535,-515.47253157,0.00022739,2]
[359233399,1745854261544,-440.06,0.00022739,2]
[359233400,1745854261553,-400.0,0.00022739,2]
[359233401,1745854261561,-400.0,0.00022739,2]
[359233402,1745854261570,-223.58457343,0.00022739,2]
[359233403,1745854261579,-400.0,0.00022739,2]
[359233404,1745854261588,-400.0,0.00022739,2]
[359233405,1745854261597,-400.0,0.00022739,2]
[359233406,1745854261606,-402.83,0.00022739,2]
[359233407,1745854261615,-400.0,0.00022739,2]
[359233408,1745854261624,-417.34720496,0.00022739,2]
[359233409,1745854261633,-400.0,0.00022739,2]
[359233410,1745854261642,-400.0,0.00022739,2]
[359233411,1745854261652,-400.0,0.00022739,2]
[359233412,1745854261661,-310.01251844,0.00022739,2]
[359233413,1745854261670,-400.0,0.00022739,2]
[359233414,1745854261679,-455.14,0.00022739,2]
[359233415,1745854261688,-400.0,0.00022739,2]
[359233416,1745854261696,-864.1,0.00022739,2]
[359233417,1745854261706,-400.0,0.00022739,2]
[359233418,1745854261715,-400.0,0.00022739,2]
[359233419,1745854261726,-400.0,0.00022739,2]
[359233420,1745854261734,-400.0,0.00022739,2]
[359233421,1745854261744,-400.0,0.00022739,2]
[359233422,1745854261753,-400.0,0.00022739,2]
[359233423,1745854261762,-470.22445019,0.00022739,2]
[359233424,1745854261771,-303.33732304,0.00022739,2]
[359233425,1745854261779,-236.7847941,0.00022739,2]
[359233426,1745854261788,-305.71543318,0.00022739,2]
[359233427,1745854261798,-400.0,0.00022739,2]
[359233428,1745854261807,-400.0,0.00022739,2]
[359233429,1745854261816,-427.10117995,0.00022739,2]
[359233430,1745854261826,-400.0,0.00022739,2]
[359233431,1745854261835,-400.0,0.00022739,2]
[359233432,1745854261844,-400.0,0.00022739,2]
[359233433,1745854261854,-352.90218327,0.00022739,2]
[359233434,1745854261863,-400.0,0.00022739,2]
[359233435,1745854261872,-400.0,0.00022739,2]
[359233436,1745854261881,-984.61,0.00022739,2]
[359233437,1745854261890,-400.0,0.00022739,2]
[359233438,1745854261899,-400.0,0.00022739,2]
[359233439,1745854261908,-400.0,0.00022739,2]
[359233440,1745854261917,-400.0,0.00022739,2]
[359233441,1745854261926,-607.8,0.00022739,2]
[359233442,1745854261935,-400.0,0.00022739,2]
[359233443,1745854261944,-400.0,0.00022739,2]
[359233444,1745854261953,-400.0,0.00022739,2]
[359233445,1745854261962,-400.0,0.00022739,2]
[359233446,1745854261971,-400.0,0.00022739,2]
[359233447,1745854261979,-400.0,0.00022739,2]
[359233448,1745854261988,-400.0,0.00022739,2]
[359233449,1745854261997,-408.33,0.00022739,2]
[359233450,1745854262006,-400.0,0.00022739,2]
[359233451,1745854262015,-415.39506342,0.00022739,2]
[359233452,1745854262024,-1654.21,0.00022739,2]
[359233453,1745854262033,-400.0,0.00022739,2]
[359233454,1745854262042,-400.0,0.00022739,2]
[359233455,1745854262051,-400.0,0.00022739,2]
[359233456,1745854262060,-400.0,0.00022739,2]
[359233457,1745854262069,-400.0,0.00022739,2]
[359233458,1745854262078,-620.87,0.00022739,2]
[359233459,1745854262088,-400.0,0.00022739,2]
[359233460,1745854262097,-400.0,0.00022739,2]
[359233461,1745854262106,-417.00640539,0.00022739,2]
[359233462,1745854262116,-481.88,0.00022739,2]
[359233463,1745854262125,-400.0,0.00022739,2]
[359233464,1745854262134,-431.49470418,0.00022739,2]
[359233465,1745854262143,-400.0,0.00022739,2]
[359233466,1745854262152,-2724.77,0.00022739,2]
[359233467,1745854262161,-400.0,0.00022739,2]
[359233468,1745854262169,-313.06555353,0.00022739,2]
[359233469,1745854262178,-400.0,0.00022739,2]
[359233470,1745854262186,-454.9,0.00022739,2]
[359233471,1745854262196,-400.0,0.00022739,2]
[359233472,1745854262204,-213.35979622,0.00022739,2]
[359233473,1745854262213,-400.0,0.00022739,2]
[359233474,1745854262224,-590.23,0.00022739,2]
[359233475,1745854262233,-705.55,0.00022739,2]
[359233476,1745854262243,-400.0,0.00022739,2]
[359233477,1745854262252,-400.0,0.00022739,2]
[359233478,1745854262262,-1309.2,0.00022739,2]
[359233479,1745854262271,-473.03,0.00022739,2]
[359233480,1745854262281,-400.0,0.00022739,2]
[359233481,1745854262290,-297.83404959,0.00022739,2]
[359233482,1745854262300,-400.0,0.00022739,2]
[359233483,1745854262437,-400.0,0.00022739,2]
[359233484,1745854262447,-400.0,0.00022739,2]
[359233485,1745854262456,-400.0,0.00022739,2]
[359233486,1745854262466,-400.0,0.00022739,2]
[359233487,1745854262476,-400.0,0.00022739,2]
[359233488,1745854262486,-400.0,0.00022739,2]
[359233489,1745854262495,-400.0,0.00022739,2]
[359233490,1745854262505,-400.0,0.00022739,2]
[359233491,1745854262514,-400.0,0.00022739,2]
[359233492,1745854262523,-849.7,0.00022739,2]
[359233493,1745854262532,-400.0,0.00022739,2]
[359233494,1745854262542,-400.0,0.00022739,2]
[359233495,1745854262551,-408.63,0.00022739,2]
[359233496,1745854262561,-432.02,0.00022739,2]
[359233497,1745854262570,-400.0,0.00022739,2]
[359233498,1745854262579,-400.0,0.00022739,2]
[359233499,1745854262588,-400.0,0.00022739,2]
[359233500,1745854262597,-400.0,0.00022739,2]
[359233501,1745854262606,-400.0,0.00022739,2]
[359233502,1745854262616,-404.48,0.00022739,2]
[359233503,1745854262626,-400.0,0.00022739,2]
[359233505,1745854262636,-400.0,0.00022739,2]
[359233506,1745854262645,-688.37,0.00022739,2]
[359233507,1745854262654,-400.0,0.00022739,2]
[359233508,1745854262663,-400.0,0.00022739,2]
[359233509,1745854262673,-400.0,0.00022739,2]
[359233510,1745854262682,-400.0,0.00022739,2]
[359233511,1745854262691,-400.0,0.00022739,2]